[Event "*** Titled Tuesday Blitz"]
[Site "Chess.com"]
[Date "2020.04.07"]
[Round "9"]
[White "annacramling"]
[Black "Mbneu"]
[Result "0-1"]
[WhiteElo "1974"]
[BlackElo "2263"]
[TimeControl "180+1"]
[EndTime "14:47:45 PDT"]
[Termination "Mbneu won on time"]

1. d4 {[%clk 0:03:00.9]} 1... Nf6 {[%clk 0:02:58.9]} 2. c4 {[%clk 0:02:59.8]}
2... c5 {[%clk 0:02:58]} 3. d5 {[%clk 0:02:58.5]} 3... e6 {[%clk 0:02:58.2]} 4.
Nc3 {[%clk 0:02:58.1]} 4... exd5 {[%clk 0:02:58.4]} 5. cxd5 {[%clk 0:02:56.3]}
5... d6 {[%clk 0:02:58.9]} 6. e4 {[%clk 0:02:56.4]} 6... g6 {[%clk 0:02:58.8]}
7. f4 {[%clk 0:02:54.9]} 7... Bg7 {[%clk 0:02:53]} 8. Bb5+ {[%clk 0:02:48.2]}
8... Bd7 {[%clk 0:02:52.4]} 9. Be2 {[%clk 0:02:46.4]} 9... O-O {[%clk
0:02:49.7]} 10. a4 {[%clk 0:02:28.5]} 10... Re8 {[%clk 0:02:47.6]} 11. Qc2
{[%clk 0:01:56.7]} 11... Na6 {[%clk 0:02:42.1]} 12. Nf3 {[%clk 0:01:53.3]} 12...
Nb4 {[%clk 0:02:40.8]} 13. Qb1 {[%clk 0:01:52.2]} 13... Bg4 {[%clk 0:02:29.5]}
14. O-O {[%clk 0:01:49.2]} 14... Nd7 {[%clk 0:01:56.1]} 15. Nb5 {[%clk 0:01:21]}
15... Nb6 {[%clk 0:01:38.4]} 16. h3 {[%clk 0:01:01.7]} 16... Bxf3 {[%clk
0:01:25.6]} 17. Bxf3 {[%clk 0:01:02.6]} 17... a6 {[%clk 0:01:20.1]} 18. Nc3
{[%clk 0:00:58.5]} 18... Nc4 {[%clk 0:01:05.4]} 19. f5 {[%clk 0:00:31.1]} 19...
Qh4 {[%clk 0:00:43.7]} 20. Bg4 {[%clk 0:00:24.9]} 20... Ne5 {[%clk 0:00:31.9]}
21. Be2 {[%clk 0:00:12.7]} 21... c4 {[%clk 0:00:23.8]} 22. Rf4 {[%clk
0:00:12.5]} 22... Qe7 {[%clk 0:00:18.5]} 23. Bd2 {[%clk 0:00:11.6]} 23... Bf6
{[%clk 0:00:16.9]} 24. Rf1 {[%clk 0:00:11.5]} 24... h5 {[%clk 0:00:15.7]} 25.
Qd1 {[%clk 0:00:10.3]} 25... Ned3 {[%clk 0:00:15.4]} 26. fxg6 {[%clk 0:00:09.1]}
26... fxg6 {[%clk 0:00:15.9]} 27. Bxd3 {[%clk 0:00:06.2]} 27... Nxd3 {[%clk
0:00:15.1]} 28. Qf3 {[%clk 0:00:04.5]} 28... Bd4+ {[%clk 0:00:14.6]} 29. Kh1
{[%clk 0:00:04.4]} 29... Rf8 {[%clk 0:00:15]} 30. Qg3 {[%clk 0:00:03.7]} 30...
Kh7 {[%clk 0:00:13.9]} 31. Rxf8 {[%clk 0:00:03.1]} 31... Rxf8 {[%clk 0:00:13]}
32. Qg5 {[%clk 0:00:03.8]} 32... Qxg5 {[%clk 0:00:12.2]} 33. Bxg5 {[%clk
0:00:04.7]} 33... Bxc3 {[%clk 0:00:09.9]} 34. bxc3 {[%clk 0:00:04.5]} 34... Nf2+
{[%clk 0:00:10.4]} 35. Kh2 {[%clk 0:00:04.4]} 35... Nxe4 {[%clk 0:00:10.8]} 36.
Bd2 {[%clk 0:00:02.9]} 36... Nxd2 {[%clk 0:00:09.2]} 37. Rd1 {[%clk 0:00:02.1]}
37... Nb3 {[%clk 0:00:09]} 38. Re1 {[%clk 0:00:01.6]} 38... Rf5 {[%clk
0:00:09.1]} 39. Re7+ {[%clk 0:00:01.6]} 39... Kh6 {[%clk 0:00:09.7]} 40. Rxb7
{[%clk 0:00:02.2]} 40... Rxd5 {[%clk 0:00:10.3]} 41. Rb6 {[%clk 0:00:02.6]}
41... a5 {[%clk 0:00:10.6]} 42. Ra6 {[%clk 0:00:03]} 42... Rd3 {[%clk
0:00:10.5]} 43. Rc6 {[%clk 0:00:02.9]} 43... d5 {[%clk 0:00:10.8]} 44. Rc5
{[%clk 0:00:03.1]} 44... Rxc3 {[%clk 0:00:11]} 45. Rb5 {[%clk 0:00:02.3]} 45...
Rd3 {[%clk 0:00:10.8]} 46. Rb6 {[%clk 0:00:02.3]} 46... c3 {[%clk 0:00:11.2]}
47. Rc6 {[%clk 0:00:02.1]} 47... d4 {[%clk 0:00:11.7]} 48. Rc4 {[%clk
0:00:01.9]} 48... Rd2 {[%clk 0:00:12.3]} 0-1

[Event "*** Titled Tuesday Blitz"]
[Site "Chess.com"]
[Date "2020.04.07"]
[Round "9"]
[White "jeaston1"]
[Black "CzechmVIII"]
[Result "1-0"]
[WhiteElo "2424"]
[BlackElo "2236"]
[TimeControl "180+1"]
[EndTime "14:47:46 PDT"]
[Termination "jeaston1 won on time"]

1. d4 {[%clk 0:03:00.9]} 1... Nf6 {[%clk 0:02:59.3]} 2. c4 {[%clk 0:03:01.3]}
2... c5 {[%clk 0:02:59.2]} 3. d5 {[%clk 0:03:00.9]} 3... e6 {[%clk 0:02:59.5]}
4. Nc3 {[%clk 0:03:01]} 4... exd5 {[%clk 0:02:59.6]} 5. cxd5 {[%clk 0:03:01.9]}
5... d6 {[%clk 0:03:00]} 6. Nf3 {[%clk 0:03:02]} 6... g6 {[%clk 0:02:59.2]} 7.
Bf4 {[%clk 0:03:01.6]} 7... a6 {[%clk 0:02:58.4]} 8. a4 {[%clk 0:03:00.6]} 8...
Bg7 {[%clk 0:02:55]} 9. e3 {[%clk 0:03:00]} 9... Bg4 {[%clk 0:02:47.9]} 10. h3
{[%clk 0:02:58.8]} 10... Bxf3 {[%clk 0:02:48]} 11. Qxf3 {[%clk 0:02:58.4]} 11...
O-O {[%clk 0:02:47.7]} 12. Bd3 {[%clk 0:02:56.3]} 12... Qe7 {[%clk 0:02:38.5]}
13. O-O {[%clk 0:02:54.6]} 13... Re8 {[%clk 0:02:24.1]} 14. Rfe1 {[%clk
0:02:46.3]} 14... Nbd7 {[%clk 0:02:22.7]} 15. Qe2 {[%clk 0:02:44.9]} 15... Rac8
{[%clk 0:02:17.2]} 16. Bh2 {[%clk 0:02:42.9]} 16... Ne5 {[%clk 0:02:07.6]} 17.
a5 {[%clk 0:02:42.3]} 17... c4 {[%clk 0:02:06]} 18. Bxe5 {[%clk 0:02:20.8]}
18... cxd3 {[%clk 0:01:44.5]} 19. Bxf6 {[%clk 0:02:18.4]} 19... dxe2 {[%clk
0:01:44.6]} 20. Bxe7 {[%clk 0:02:16.9]} 20... Rxe7 {[%clk 0:01:44.2]} 21. Rxe2
{[%clk 0:02:13.9]} 21... Bxc3 {[%clk 0:01:35.1]} 22. bxc3 {[%clk 0:02:08.4]}
22... Rxc3 {[%clk 0:01:35.1]} 23. Rd2 {[%clk 0:01:56.3]} 23... Rc5 {[%clk
0:01:31]} 24. Rd4 {[%clk 0:01:55.9]} 24... f5 {[%clk 0:01:23.8]} 25. g4 {[%clk
0:01:55.4]} 25... Re5 {[%clk 0:01:12.1]} 26. gxf5 {[%clk 0:01:48]} 26... gxf5
{[%clk 0:01:12]} 27. Rb1 {[%clk 0:01:43.6]} 27... Rexd5 {[%clk 0:00:59.2]} 28.
Rxd5 {[%clk 0:01:35]} 28... Rxd5 {[%clk 0:00:58.7]} 29. Rxb7 {[%clk 0:01:35.3]}
29... Rxa5 {[%clk 0:00:58.7]} 30. Rb6 {[%clk 0:01:35]} 30... d5 {[%clk
0:00:50.4]} 31. Rf6 {[%clk 0:01:34.1]} 31... d4 {[%clk 0:00:38.4]} 32. exd4
{[%clk 0:01:31.6]} 32... Rd5 {[%clk 0:00:37.7]} 33. Rxa6 {[%clk 0:01:28.9]}
33... Rxd4 {[%clk 0:00:37.9]} 34. Ra7 {[%clk 0:01:28.7]} 34... Rd6 {[%clk
0:00:28.6]} 35. Kg2 {[%clk 0:01:28.8]} 35... Rd3 {[%clk 0:00:20.7]} 36. Ra5
{[%clk 0:01:24]} 36... f4 {[%clk 0:00:16.7]} 37. Rf5 {[%clk 0:01:23.1]} 37...
Kg7 {[%clk 0:00:16]} 38. Rxf4 {[%clk 0:01:22.5]} 38... Kg6 {[%clk 0:00:16.3]}
39. Rg4+ {[%clk 0:01:20.8]} 39... Kf6 {[%clk 0:00:16.1]} 40. Rg3 {[%clk
0:01:21.7]} 40... Rd5 {[%clk 0:00:15.2]} 41. Kf3 {[%clk 0:01:21.3]} 41... Ra5
{[%clk 0:00:14.7]} 42. Kg4 {[%clk 0:01:20]} 42... Ra4+ {[%clk 0:00:14.2]} 43.
Kh5 {[%clk 0:01:18.7]} 43... Kf7 {[%clk 0:00:10.8]} 44. Rg4 {[%clk 0:01:11.8]}
44... Ra6 {[%clk 0:00:09.7]} 45. Rb4 {[%clk 0:01:01.5]} 45... Rf6 {[%clk
0:00:04.6]} 46. Rb7+ {[%clk 0:01:00.4]} 46... Kg8 {[%clk 0:00:04.9]} 47. Rb2
{[%clk 0:00:56.2]} 47... Rf3 {[%clk 0:00:03.5]} 48. Kg4 {[%clk 0:00:55.7]} 48...
Rf6 {[%clk 0:00:03.3]} 49. f4 {[%clk 0:00:54.8]} 49... Kg7 {[%clk 0:00:03.5]}
50. Rb7+ {[%clk 0:00:52.4]} 50... Kg8 {[%clk 0:00:02.1]} 51. f5 {[%clk
0:00:50.3]} 51... Ra6 {[%clk 0:00:01.9]} 52. Kg5 {[%clk 0:00:49.4]} 52... Ra3
{[%clk 0:00:02.2]} 53. h4 {[%clk 0:00:48.3]} 53... Ra6 {[%clk 0:00:02.4]} 54. h5
{[%clk 0:00:46.2]} 54... Rc6 {[%clk 0:00:02]} 55. h6 {[%clk 0:00:44.1]} 55...
Ra6 {[%clk 0:00:02]} 56. Rg7+ {[%clk 0:00:43.6]} 56... Kh8 {[%clk 0:00:02.4]}
57. Rb7 {[%clk 0:00:39.9]} 57... Kg8 {[%clk 0:00:02]} 58. Rb8+ {[%clk
0:00:40.3]} 58... Kf7 {[%clk 0:00:02.1]} 59. Rh8 {[%clk 0:00:40.7]} 1-0

[Event "*** Titled Tuesday Blitz"]
[Site "Chess.com"]
[Date "2020.04.07"]
[Round "9"]
[White "JustaTrickstar"]
[Black "jk13"]
[Result "1-0"]
[WhiteElo "2677"]
[BlackElo "2816"]
[TimeControl "180+1"]
[EndTime "14:47:48 PDT"]
[Termination "JustaTrickstar won by resignation"]

1. c4 {[%clk 0:03:00.9]} 1... e6 {[%clk 0:03:00.3]} 2. Nc3 {[%clk 0:03:00.7]}
2... Bb4 {[%clk 0:02:59.9]} 3. e4 {[%clk 0:03:00.3]} 3... e5 {[%clk 0:02:58.5]}
4. Nf3 {[%clk 0:02:56.6]} 4... Nc6 {[%clk 0:02:59.1]} 5. Nd5 {[%clk 0:02:44.6]}
5... Bd6 {[%clk 0:02:53.1]} 6. d4 {[%clk 0:02:43.5]} 6... exd4 {[%clk
0:02:52.2]} 7. Nxd4 {[%clk 0:02:42.8]} 7... Nge7 {[%clk 0:02:37.7]} 8. Be2
{[%clk 0:02:33.7]} 8... Nxd5 {[%clk 0:02:28.9]} 9. exd5 {[%clk 0:02:28.4]} 9...
Nxd4 {[%clk 0:02:15.5]} 10. Qxd4 {[%clk 0:02:28]} 10... O-O {[%clk 0:02:11.1]}
11. O-O {[%clk 0:02:21.6]} 11... Re8 {[%clk 0:02:11.1]} 12. Be3 {[%clk
0:02:06.8]} 12... Be5 {[%clk 0:02:09.9]} 13. Qd2 {[%clk 0:02:06.6]} 13... d6
{[%clk 0:02:09.8]} 14. Rae1 {[%clk 0:02:00.2]} 14... b6 {[%clk 0:02:06.4]} 15.
h3 {[%clk 0:01:53.7]} 15... a5 {[%clk 0:02:05.9]} 16. Bd3 {[%clk 0:01:44.4]}
16... Bd7 {[%clk 0:01:58.3]} 17. f4 {[%clk 0:01:35.3]} 17... Bf6 {[%clk
0:01:56.5]} 18. Kh2 {[%clk 0:01:35.3]} 18... h6 {[%clk 0:01:51.6]} 19. Bb1
{[%clk 0:01:30.6]} 19... g6 {[%clk 0:01:25.5]} 20. b3 {[%clk 0:01:26.9]} 20...
Kg7 {[%clk 0:01:23.2]} 21. Re2 {[%clk 0:01:19]} 21... Bf5 {[%clk 0:01:18.7]} 22.
Bxf5 {[%clk 0:01:14.3]} 22... gxf5 {[%clk 0:01:19.6]} 23. Rfe1 {[%clk
0:01:06.9]} 23... Re4 {[%clk 0:01:11.9]} 24. Bf2 {[%clk 0:00:57.9]} 24... Qe7
{[%clk 0:01:03.2]} 25. Rxe4 {[%clk 0:00:50.8]} 25... fxe4 {[%clk 0:01:04.1]} 26.
Qe3 {[%clk 0:00:49]} 26... Re8 {[%clk 0:01:04]} 27. g4 {[%clk 0:00:49]} 27...
Kg8 {[%clk 0:00:51.6]} 28. Bg3 {[%clk 0:00:46.5]} 28... Bg7 {[%clk 0:00:49.9]}
29. Re2 {[%clk 0:00:46.5]} 29... f5 {[%clk 0:00:47.4]} 30. gxf5 {[%clk
0:00:45.2]} 30... Qf7 {[%clk 0:00:47.5]} 31. a3 {[%clk 0:00:39.8]} 31... Qxf5
{[%clk 0:00:47]} 32. b4 {[%clk 0:00:40.2]} 32... axb4 {[%clk 0:00:45.4]} 33.
axb4 {[%clk 0:00:41.1]} 33... Qf6 {[%clk 0:00:38.6]} 34. Be1 {[%clk 0:00:40.5]}
34... Qd4 {[%clk 0:00:22.6]} 35. Qg3 {[%clk 0:00:40.1]} 35... Kh7 {[%clk
0:00:20.6]} 36. Rg2 {[%clk 0:00:30.2]} 36... Qf6 {[%clk 0:00:20.9]} 37. Bf2
{[%clk 0:00:26.1]} 37... Qf7 {[%clk 0:00:19]} 38. Be3 {[%clk 0:00:20.8]} 38...
Rg8 {[%clk 0:00:18.6]} 39. Qg4 {[%clk 0:00:19.9]} 39... Bc3 {[%clk 0:00:16.8]}
40. Qe6 {[%clk 0:00:09.1]} 40... Rxg2+ {[%clk 0:00:15.8]} 41. Kxg2 {[%clk
0:00:10]} 41... Qxe6 {[%clk 0:00:11.5]} 42. dxe6 {[%clk 0:00:10.9]} 42... Kg7
{[%clk 0:00:10.5]} 43. f5 {[%clk 0:00:09.8]} 43... Bf6 {[%clk 0:00:09.4]} 44. b5
{[%clk 0:00:09.2]} 44... Be7 {[%clk 0:00:08.5]} 45. Kg3 {[%clk 0:00:09]} 45...
Kf6 {[%clk 0:00:09.1]} 46. Kf4 {[%clk 0:00:09.3]} 46... Bd8 {[%clk 0:00:08.6]}
47. Kxe4 {[%clk 0:00:09.4]} 47... h5 {[%clk 0:00:07.7]} 48. h4 {[%clk
0:00:08.8]} 48... Kg7 {[%clk 0:00:08.4]} 49. Bg5 {[%clk 0:00:08.8]} 49... Bf6
{[%clk 0:00:09.3]} 50. Kf4 {[%clk 0:00:08.1]} 50... Be5+ {[%clk 0:00:08.6]} 51.
Ke4 {[%clk 0:00:08.5]} 51... Bf6 {[%clk 0:00:09.2]} 52. Bxf6+ {[%clk 0:00:08.1]}
52... Kxf6 {[%clk 0:00:09.6]} 53. Kf4 {[%clk 0:00:08.5]} 53... Ke7 {[%clk
0:00:08.8]} 54. Kg5 {[%clk 0:00:08.7]} 54... Kf8 {[%clk 0:00:09.5]} 55. f6
{[%clk 0:00:08.8]} 55... Kg8 {[%clk 0:00:09.7]} 56. Kg6 {[%clk 0:00:08.6]} 56...
Kf8 {[%clk 0:00:10.6]} 57. e7+ {[%clk 0:00:08.5]} 57... Ke8 {[%clk 0:00:11.1]}
58. Kg7 {[%clk 0:00:09]} 1-0

[Event "*** Titled Tuesday Blitz"]
[Site "Chess.com"]
[Date "2020.04.07"]
[Round "9"]
[White "Kobalia"]
[Black "MikeKorovin"]
[Result "1/2-1/2"]
[WhiteElo "2626"]
[BlackElo "2763"]
[TimeControl "180+1"]
[EndTime "14:47:48 PDT"]
[Termination "Game drawn by repetition"]

1. e4 {[%clk 0:03:00.9]} 1... e6 {[%clk 0:02:59.7]} 2. d4 {[%clk 0:03:00.1]}
2... d5 {[%clk 0:03:00.2]} 3. Nc3 {[%clk 0:03:00.2]} 3... Bb4 {[%clk 0:02:59.7]}
4. e5 {[%clk 0:02:59.6]} 4... Qd7 {[%clk 0:02:57]} 5. Qg4 {[%clk 0:02:56.9]}
5... Bf8 {[%clk 0:02:56.5]} 6. Nf3 {[%clk 0:02:48.5]} 6... b6 {[%clk 0:02:55.7]}
7. h4 {[%clk 0:02:45.7]} 7... h5 {[%clk 0:02:50.4]} 8. Qh3 {[%clk 0:02:35.9]}
8... Ba6 {[%clk 0:02:46.2]} 9. Bxa6 {[%clk 0:02:34.9]} 9... Nxa6 {[%clk
0:02:47.1]} 10. Bg5 {[%clk 0:02:35.1]} 10... Nb4 {[%clk 0:02:43.3]} 11. Rc1
{[%clk 0:02:12.5]} 11... Nh6 {[%clk 0:02:38.9]} 12. Bxh6 {[%clk 0:02:10.1]}
12... Rxh6 {[%clk 0:02:36]} 13. O-O {[%clk 0:02:09.7]} 13... Be7 {[%clk
0:02:35.4]} 14. Ng5 {[%clk 0:02:09.2]} 14... Bxg5 {[%clk 0:02:18.5]} 15. hxg5
{[%clk 0:02:08.5]} 15... Rh8 {[%clk 0:02:19.2]} 16. a3 {[%clk 0:02:03.9]} 16...
Nc6 {[%clk 0:02:18.1]} 17. Ne2 {[%clk 0:02:04.4]} 17... g6 {[%clk 0:02:16.7]}
18. Rfd1 {[%clk 0:01:51.9]} 18... O-O-O {[%clk 0:02:13.2]} 19. Qf3 {[%clk
0:01:49.6]} 19... Kb8 {[%clk 0:02:06.1]} 20. b4 {[%clk 0:01:48.5]} 20... Ne7
{[%clk 0:02:02]} 21. Nf4 {[%clk 0:01:37.7]} 21... Nf5 {[%clk 0:01:53.7]} 22. c4
{[%clk 0:01:33.4]} 22... dxc4 {[%clk 0:01:51.8]} 23. Rxc4 {[%clk 0:01:33]} 23...
Qb5 {[%clk 0:01:39.2]} 24. Qc3 {[%clk 0:01:29.6]} 24... Rd7 {[%clk 0:01:35.6]}
25. d5 {[%clk 0:01:27.4]} 25... Rhd8 {[%clk 0:01:23.9]} 26. Rc1 {[%clk 0:01:23]}
26... exd5 {[%clk 0:00:57.9]} 27. Rxc7 {[%clk 0:01:22.3]} 27... d4 {[%clk
0:00:57.1]} 28. Qc2 {[%clk 0:00:32.7]} 28... d3 {[%clk 0:00:52.9]} 29. Nxd3
{[%clk 0:00:28.5]} 29... Nd4 {[%clk 0:00:22.9]} 30. Rxd7 {[%clk 0:00:09.5]}
30... Qxd7 {[%clk 0:00:23.8]} 31. Qd1 {[%clk 0:00:08.7]} 31... Ne6 {[%clk
0:00:18.5]} 32. Nb2 {[%clk 0:00:07.1]} 32... Qxd1+ {[%clk 0:00:18.7]} 33. Rxd1
{[%clk 0:00:06.5]} 33... Rxd1+ {[%clk 0:00:18.7]} 34. Nxd1 {[%clk 0:00:06.4]}
34... Nxg5 {[%clk 0:00:19.6]} 35. Nc3 {[%clk 0:00:06.3]} 35... Kb7 {[%clk
0:00:19]} 36. f4 {[%clk 0:00:06.2]} 36... Ne6 {[%clk 0:00:18.8]} 37. g3 {[%clk
0:00:06.7]} 37... Nd4 {[%clk 0:00:19.1]} 38. Kf2 {[%clk 0:00:06]} 38... Nc2
{[%clk 0:00:19.3]} 39. Nb1 {[%clk 0:00:04]} 39... Kc6 {[%clk 0:00:18]} 40. Ke2
{[%clk 0:00:03.6]} 40... Kd5 {[%clk 0:00:12.4]} 41. Kd3 {[%clk 0:00:03.7]} 41...
Ne1+ {[%clk 0:00:12.8]} 42. Ke2 {[%clk 0:00:04]} 42... Nc2 {[%clk 0:00:10.9]}
43. Kd3 {[%clk 0:00:04.1]} 43... Ne1+ {[%clk 0:00:04.9]} 44. Ke2 {[%clk
0:00:04.2]} 44... Ng2 {[%clk 0:00:04.8]} 45. Kf3 {[%clk 0:00:04.5]} 45... Ne1+
{[%clk 0:00:04.4]} 46. Ke2 {[%clk 0:00:04.9]} 1/2-1/2

[Event "*** Titled Tuesday Blitz"]
[Site "Chess.com"]
[Date "2020.04.07"]
[Round "9"]
[White "StoreySniper"]
[Black "Bajecny"]
[Result "1-0"]
[WhiteElo "2533"]
[BlackElo "2294"]
[TimeControl "180+1"]
[EndTime "14:47:48 PDT"]
[Termination "StoreySniper won by resignation"]

1. e4 {[%clk 0:03:00.9]} 1... c5 {[%clk 0:02:59.6]} 2. Nf3 {[%clk 0:03:00.9]}
2... e6 {[%clk 0:03:00.2]} 3. d3 {[%clk 0:02:59.2]} 3... d5 {[%clk 0:02:58.4]}
4. Nbd2 {[%clk 0:02:59.3]} 4... Nc6 {[%clk 0:02:58.8]} 5. g3 {[%clk 0:02:57.4]}
5... Bd6 {[%clk 0:02:58.8]} 6. Bg2 {[%clk 0:02:57.1]} 6... Nge7 {[%clk
0:02:58.8]} 7. O-O {[%clk 0:02:56.5]} 7... O-O {[%clk 0:02:58.4]} 8. Re1 {[%clk
0:02:54.9]} 8... Qc7 {[%clk 0:02:58.7]} 9. Qe2 {[%clk 0:02:53.5]} 9... f6 {[%clk
0:02:58.9]} 10. c3 {[%clk 0:02:48]} 10... b6 {[%clk 0:02:58]} 11. b3 {[%clk
0:02:38.7]} 11... d4 {[%clk 0:02:57.9]} 12. c4 {[%clk 0:02:37.3]} 12... a5
{[%clk 0:02:52.6]} 13. a4 {[%clk 0:02:34.6]} 13... Nb4 {[%clk 0:02:51.4]} 14.
Nb1 {[%clk 0:02:19.8]} 14... e5 {[%clk 0:02:49.9]} 15. Na3 {[%clk 0:02:18.1]}
15... Bg4 {[%clk 0:02:40.8]} 16. h3 {[%clk 0:02:15.7]} 16... Bh5 {[%clk
0:02:31.7]} 17. Nb5 {[%clk 0:02:15]} 17... Qd7 {[%clk 0:02:30.9]} 18. g4 {[%clk
0:02:12]} 18... Bf7 {[%clk 0:02:28.2]} 19. Nh4 {[%clk 0:02:07.1]} 19... g6
{[%clk 0:02:19.6]} 20. Bh6 {[%clk 0:01:47]} 20... Rfe8 {[%clk 0:02:18.8]} 21.
Qd2 {[%clk 0:01:43.9]} 21... Rad8 {[%clk 0:02:12.2]} 22. Rf1 {[%clk 0:01:42.5]}
22... Kh8 {[%clk 0:01:59.5]} 23. f4 {[%clk 0:01:39.8]} 23... exf4 {[%clk
0:01:59.3]} 24. Nxd6 {[%clk 0:01:39.4]} 24... Qxd6 {[%clk 0:01:59.1]} 25. Bxf4
{[%clk 0:01:39.4]} 25... Qe6 {[%clk 0:01:56.7]} 26. e5 {[%clk 0:01:21.4]} 26...
fxe5 {[%clk 0:01:29.1]} 27. Bg5 {[%clk 0:01:11]} 27... Kg8 {[%clk 0:01:05.8]}
28. Rf6 {[%clk 0:01:08.3]} 28... Qd7 {[%clk 0:01:05.9]} 29. Raf1 {[%clk
0:01:08.7]} 29... Rf8 {[%clk 0:01:05.9]} 30. Bh6 {[%clk 0:00:47.8]} 30... Nc8
{[%clk 0:00:41.8]} 31. Bxf8 {[%clk 0:00:46]} 31... Rxf8 {[%clk 0:00:42.7]} 32.
Nf3 {[%clk 0:00:32.6]} 32... Qe7 {[%clk 0:00:41.1]} 33. Ng5 {[%clk 0:00:29.2]}
33... Nd6 {[%clk 0:00:39]} 34. Bd5 {[%clk 0:00:22.5]} 34... Nxd5 {[%clk
0:00:38.6]} 35. cxd5 {[%clk 0:00:23]} 35... h6 {[%clk 0:00:22.3]} 36. Ne4 {[%clk
0:00:19.9]} 36... Nf5 {[%clk 0:00:18.6]} 37. gxf5 {[%clk 0:00:18.9]} 37... Bxd5
{[%clk 0:00:11.2]} 38. Rxf8+ {[%clk 0:00:17.2]} 38... Kxf8 {[%clk 0:00:11.4]}
39. Qxh6+ {[%clk 0:00:15]} 39... Ke8 {[%clk 0:00:09.6]} 40. f6 {[%clk
0:00:12.5]} 1-0

[Event "*** Titled Tuesday Blitz"]
[Site "Chess.com"]
[Date "2020.04.07"]
[Round "9"]
[White "twitchTriniCupid"]
[Black "kungmongmanh"]
[Result "1/2-1/2"]
[WhiteElo "2400"]
[BlackElo "2526"]
[TimeControl "180+1"]
[EndTime "14:47:48 PDT"]
[Termination "Game drawn by repetition"]

1. d4 {[%clk 0:03:00.9]} 1... Nf6 {[%clk 0:02:59.4]} 2. c4 {[%clk 0:03:00.7]}
2... e6 {[%clk 0:02:59.8]} 3. Nf3 {[%clk 0:03:01.1]} 3... Bb4+ {[%clk
0:02:59.9]} 4. Bd2 {[%clk 0:03:00.3]} 4... Qe7 {[%clk 0:03:00.3]} 5. Qc2 {[%clk
0:02:58.2]} 5... O-O {[%clk 0:02:59.8]} 6. e3 {[%clk 0:02:48]} 6... Bxd2+ {[%clk
0:02:59.4]} 7. Nbxd2 {[%clk 0:02:47.6]} 7... d6 {[%clk 0:03:00.1]} 8. Bd3 {[%clk
0:02:37.2]} 8... e5 {[%clk 0:03:00.3]} 9. dxe5 {[%clk 0:02:34.8]} 9... dxe5
{[%clk 0:02:59.9]} 10. O-O {[%clk 0:02:34.7]} 10... h6 {[%clk 0:02:59.2]} 11. a3
{[%clk 0:02:22.1]} 11... Re8 {[%clk 0:02:58.2]} 12. Bf5 {[%clk 0:02:21.3]} 12...
a5 {[%clk 0:02:41.3]} 13. Bxc8 {[%clk 0:02:08.9]} 13... Rxc8 {[%clk 0:02:41.2]}
14. Qf5 {[%clk 0:01:57.7]} 14... Nc6 {[%clk 0:02:40.7]} 15. Ne4 {[%clk
0:01:54.7]} 15... Nxe4 {[%clk 0:02:33.7]} 16. Qxe4 {[%clk 0:01:55.6]} 16... Rd8
{[%clk 0:02:26.5]} 17. Rad1 {[%clk 0:01:54.8]} 17... a4 {[%clk 0:02:17.8]} 18.
Rd5 {[%clk 0:01:52.1]} 18... Re8 {[%clk 0:01:59.6]} 19. Rfd1 {[%clk 0:01:49.5]}
19... Rad8 {[%clk 0:01:59]} 20. Qc2 {[%clk 0:01:38.1]} 20... e4 {[%clk
0:01:31.3]} 21. Nd4 {[%clk 0:01:12.2]} 21... Nxd4 {[%clk 0:01:01.6]} 22. R1xd4
{[%clk 0:01:10.2]} 22... c6 {[%clk 0:00:39.6]} 23. Rxd8 {[%clk 0:00:29.7]} 23...
Rxd8 {[%clk 0:00:40.1]} 24. Rxd8+ {[%clk 0:00:24]} 24... Qxd8 {[%clk 0:00:40.5]}
25. Qxa4 {[%clk 0:00:15.1]} 25... Qd2 {[%clk 0:00:33.8]} 26. g3 {[%clk
0:00:12.3]} 26... Qxb2 {[%clk 0:00:33.4]} 27. Qb4 {[%clk 0:00:12.2]} 27... Qxb4
{[%clk 0:00:22.4]} 28. axb4 {[%clk 0:00:13.1]} 28... f5 {[%clk 0:00:22.4]} 29.
Kf1 {[%clk 0:00:12.8]} 29... Kf7 {[%clk 0:00:20.1]} 30. Ke2 {[%clk 0:00:12.4]}
30... Ke6 {[%clk 0:00:20.6]} 31. Kd2 {[%clk 0:00:12.6]} 31... b5 {[%clk
0:00:18.5]} 32. Kc3 {[%clk 0:00:12.7]} 32... Ke5 {[%clk 0:00:18]} 33. Kb3 {[%clk
0:00:12.8]} 33... g5 {[%clk 0:00:16.7]} 34. Kc3 {[%clk 0:00:12.8]} 34... f4
{[%clk 0:00:11.4]} 35. Kb3 {[%clk 0:00:07.8]} 35... h5 {[%clk 0:00:08.1]} 36.
Kc3 {[%clk 0:00:07.5]} 36... f3 {[%clk 0:00:06.3]} 37. Kb3 {[%clk 0:00:06.6]}
37... Kf5 {[%clk 0:00:06.5]} 38. cxb5 {[%clk 0:00:06.5]} 38... cxb5 {[%clk
0:00:06.4]} 39. Kc3 {[%clk 0:00:07.4]} 39... Ke5 {[%clk 0:00:06.8]} 40. Kb3
{[%clk 0:00:07.3]} 40... Kd5 {[%clk 0:00:07.4]} 41. Kc3 {[%clk 0:00:08.2]} 41...
Ke5 {[%clk 0:00:07.7]} 42. Kb3 {[%clk 0:00:08.5]} 42... Kd5 {[%clk 0:00:08.3]}
43. Kc3 {[%clk 0:00:09.4]} 43... h4 {[%clk 0:00:08.3]} 44. g4 {[%clk 0:00:06.9]}
44... h3 {[%clk 0:00:07.3]} 45. Kb3 {[%clk 0:00:07]} 45... Ke5 {[%clk
0:00:07.9]} 46. Kc3 {[%clk 0:00:07.5]} 46... Kd5 {[%clk 0:00:08.6]} 47. Kb3
{[%clk 0:00:07.6]} 47... Ke5 {[%clk 0:00:08.8]} 48. Kc3 {[%clk 0:00:08.1]} 48...
Kd5 {[%clk 0:00:09.4]} 1/2-1/2